[Event "Titled Tuesday Blitz August 22 Early 2023"]
[White "Sovetbekova, Nurai"]
[Black "Kozin, Yuri"]
[WhiteFideId "13801910"]
[BlackFideId "4129920"]
[WhiteElo "2313"]
[BlackElo "2600"]
[Result "1-0"]
[Round "1"]
[TimeControl "180+1"]
[Date "2023.08.22"]
[WhiteClock "0:00:07"]
[BlackClock "0:00:06"]
[Board "175"]

1. d4 {[%clk 0:02:59]}  d5 {[%clk 0:03:00]} 2. c4 {[%clk 0:02:55]}  c6 {[%clk 0:02:59]} 3. Nf3 {[%clk 0:02:54]}  Nf6 {[%clk 0:02:58]} 4. g3 {[%clk 0:02:53]}  g6 {[%clk 0:02:56]} 5. Qa4 {[%clk 0:02:49]}  Bg7 {[%clk 0:02:50]} 6. cxd5 {[%clk 0:02:49]}  Nxd5 {[%clk 0:02:50]} 7. Bg2 {[%clk 0:02:48]}  O-O {[%clk 0:02:47]} 8. O-O {[%clk 0:02:48]}  Nd7 {[%clk 0:02:46]} 9. e4 {[%clk 0:02:42]}  N7b6 {[%clk 0:02:42]} 10. Qb3 {[%clk 0:02:41]}  Nf6 {[%clk 0:02:40]} 11. Nc3 {[%clk 0:02:41]}  Be6 {[%clk 0:02:39]} 12. Qc2 {[%clk 0:02:41]}  Qc8 {[%clk 0:02:34]} 13. Rd1 {[%clk 0:02:17]}  Bh3 {[%clk 0:02:31]} 14. Bh1 {[%clk 0:02:15]}  Bg4 {[%clk 0:02:18]} 15. Be3 {[%clk 0:02:10]}  Rd8 {[%clk 0:02:16]} 16. b3 {[%clk 0:02:04]}  a5 {[%clk 0:01:51]} 17. Rac1 {[%clk 0:02:01]}  a4 {[%clk 0:01:41]} 18. Qb1 {[%clk 0:01:45]}  a3 {[%clk 0:01:30]} 19. d5 {[%clk 0:01:41]}  Nbd7 {[%clk 0:01:26]} 20. dxc6 {[%clk 0:01:39]}  bxc6 {[%clk 0:01:26]} 21. Na4 {[%clk 0:01:16]}  Qc7 {[%clk 0:01:15]} 22. Bg2 {[%clk 0:01:04]}  Ne5 {[%clk 0:01:04]} 23. Rxd8+ {[%clk 0:00:52]}  Rxd8 {[%clk 0:00:57]} 24. Bb6 {[%clk 0:00:46]}  Nxf3+ {[%clk 0:00:44]} 25. Bxf3 {[%clk 0:00:46]}  Qd7 {[%clk 0:00:42]} 26. Bxg4 {[%clk 0:00:44]}  Nxg4 {[%clk 0:00:41]} 27. Bxd8 {[%clk 0:00:44]}  Qxd8 {[%clk 0:00:42]} 28. Qc2 {[%clk 0:00:32]}  h5 {[%clk 0:00:36]} 29. h3 {[%clk 0:00:30]}  Ne5 {[%clk 0:00:35]} 30. Kg2 {[%clk 0:00:30]}  Qd4 {[%clk 0:00:29]} 31. Rd1 {[%clk 0:00:26]}  Qa7 {[%clk 0:00:26]} 32. Qc5 {[%clk 0:00:23]}  Qc7 {[%clk 0:00:21]} 33. Qxa3 {[%clk 0:00:21]}  h4 {[%clk 0:00:18]} 34. Qc5 {[%clk 0:00:16]}  hxg3 {[%clk 0:00:18]} 35. fxg3 {[%clk 0:00:16]}  Bf8 {[%clk 0:00:17]} 36. Qd4 {[%clk 0:00:15]}  Qa5 {[%clk 0:00:14]} 37. Qd2 {[%clk 0:00:14]}  Qb5 {[%clk 0:00:14]} 38. Nc3 {[%clk 0:00:14]}  Qb7 {[%clk 0:00:14]} 39. Qd4 {[%clk 0:00:13]}  Bg7 {[%clk 0:00:14]} 40. Qf2 {[%clk 0:00:13]}  Kh7 {[%clk 0:00:14]} 41. Qd2 {[%clk 0:00:13]}  c5 {[%clk 0:00:14]} 42. Rf1 {[%clk 0:00:12]}  Bf6 {[%clk 0:00:13]} 43. Nd5 {[%clk 0:00:12]}  Kg7 {[%clk 0:00:13]} 44. Nxf6 {[%clk 0:00:12]}  exf6 {[%clk 0:00:14]} 45. Qe2 {[%clk 0:00:12]}  g5 {[%clk 0:00:13]} 46. Kh2 {[%clk 0:00:10]}  Qc6 {[%clk 0:00:13]} 47. Qf2 {[%clk 0:00:10]}  g4 {[%clk 0:00:12]} 48. h4 {[%clk 0:00:10]}  Nf3+ {[%clk 0:00:12]} 49. Kg2 {[%clk 0:00:10]}  Qxe4 {[%clk 0:00:12]} 50. Ra1 {[%clk 0:00:07]}  Nd2+ {[%clk 0:00:10]} 51. Kh2 {[%clk 0:00:07]}  Nf3+ {[%clk 0:00:10]} 52. Kg2 {[%clk 0:00:07]}  Nxh4+ {[%clk 0:00:10]} 53. Kh2 {[%clk 0:00:07]}  Nf3+ {[%clk 0:00:10]} 54. Kg2 {[%clk 0:00:07]}  Ng5+ {[%clk 0:00:10]} 55. Kf1 {[%clk 0:00:07]}  Qh1+ {[%clk 0:00:09]} 56. Qg1 {[%clk 0:00:07]}  Qf3+ {[%clk 0:00:09]} 57. Qf2 {[%clk 0:00:08]}  Qc3 {[%clk 0:00:09]} 58. Re1 {[%clk 0:00:07]}  Nf3 {[%clk 0:00:08]} 59. Rd1 {[%clk 0:00:08]}  c4 {[%clk 0:00:08]} 60. bxc4 {[%clk 0:00:05]}  Qxc4+ {[%clk 0:00:09]} 61. Kg2 {[%clk 0:00:05]}  Qc6 {[%clk 0:00:09]} 62. Kf1 {[%clk 0:00:05]}  f5 {[%clk 0:00:07]} 63. Qb2+ {[%clk 0:00:05]}  Kg6 {[%clk 0:00:06]} 64. Qe2 {[%clk 0:00:03]}  f6 {[%clk 0:00:06]} 65. Qf2 {[%clk 0:00:03]}  Qc4+ {[%clk 0:00:06]} 66. Qe2 {[%clk 0:00:03]}  Qe4 {[%clk 0:00:07]} 67. Qxe4 {[%clk 0:00:03]}  fxe4 {[%clk 0:00:07]} 68. Rd6 {[%clk 0:00:04]}  Kf5 {[%clk 0:00:07]} 69. a4 {[%clk 0:00:04]}  e3 {[%clk 0:00:07]} 70. Ke2 {[%clk 0:00:04]}  Ke4 {[%clk 0:00:06]} 71. Re6+ {[%clk 0:00:04]}  Kf5 {[%clk 0:00:05]} 72. Rxe3 {[%clk 0:00:05]}  Nd4+ {[%clk 0:00:06]} 73. Kd3 {[%clk 0:00:05]}  Nc6 {[%clk 0:00:06]} 74. Re2 {[%clk 0:00:05]}  Ne5+ {[%clk 0:00:06]} 75. Kd4 {[%clk 0:00:04]}  Nf3+ {[%clk 0:00:05]} 76. Ke3 {[%clk 0:00:04]}  Ne5 {[%clk 0:00:05]} 77. Rc2 {[%clk 0:00:04]}  Ke6 {[%clk 0:00:05]} 78. a5 {[%clk 0:00:05]}  Kd6 {[%clk 0:00:06]} 79. a6 {[%clk 0:00:05]}  Nc6 {[%clk 0:00:06]} 80. Ra2 {[%clk 0:00:05]}  Na7 {[%clk 0:00:06]} 81. Kf4 {[%clk 0:00:05]}  Kc6 {[%clk 0:00:06]} 82. Kxg4 {[%clk 0:00:06]}  Kb6 {[%clk 0:00:07]} 83. Kf5 {[%clk 0:00:06]}  Nc8 {[%clk 0:00:07]} 84. a7 {[%clk 0:00:06]}  Nxa7 {[%clk 0:00:07]} 85. Rxa7 {[%clk 0:00:07]}  Kxa7 {[%clk 0:00:06]} 86. Kxf6 {[%clk 0:00:07]} 1-0


[Site "https://www.chess.com"]

[Event "Titled Tuesday Blitz August 22 Early 2023"]
[White "Wang, Alexander J"]
[Black "Rosen, Eric"]
[WhiteFideId "30955270"]
[BlackFideId "2032562"]
[WhiteElo "2303"]
[BlackElo "2593"]
[Result "0-1"]
[Round "1"]
[TimeControl "180+1"]
[Date "2023.08.22"]
[WhiteClock "0:00:15"]
[BlackClock "0:00:50"]
[Board "177"]

1. e4 {[%clk 0:02:59]}  c5 {[%clk 0:02:59]} 2. Nf3 {[%clk 0:02:58]}  Nc6 {[%clk 0:02:57]} 3. d4 {[%clk 0:02:58]}  cxd4 {[%clk 0:02:58]} 4. Nxd4 {[%clk 0:02:58]}  g6 {[%clk 0:02:58]} 5. Nc3 {[%clk 0:02:58]}  Bg7 {[%clk 0:02:58]} 6. Be3 {[%clk 0:02:58]}  Nf6 {[%clk 0:02:58]} 7. Bc4 {[%clk 0:02:58]}  O-O {[%clk 0:02:58]} 8. Bb3 {[%clk 0:02:57]}  Re8 {[%clk 0:02:58]} 9. f3 {[%clk 0:02:52]}  e6 {[%clk 0:02:58]} 10. Qd2 {[%clk 0:02:40]}  d5 {[%clk 0:02:53]} 11. exd5 {[%clk 0:02:14]}  Nxd5 {[%clk 0:02:44]} 12. Nxd5 {[%clk 0:02:08]}  Nxd4 {[%clk 0:02:14]} 13. Nc3 {[%clk 0:00:44]}  Qh4+ {[%clk 0:01:44]} 14. Bf2 {[%clk 0:00:40]}  Nxb3 {[%clk 0:01:44]} 15. axb3 {[%clk 0:00:23]}  Qh5 {[%clk 0:01:35]} 16. O-O {[%clk 0:00:19]}  b6 {[%clk 0:01:29]} 17. Ne4 {[%clk 0:00:19]}  Bb7 {[%clk 0:01:18]} 18. c3 {[%clk 0:00:17]}  Bxe4 {[%clk 0:00:57]} 19. fxe4 {[%clk 0:00:18]}  Red8 {[%clk 0:00:58]} 20. Qf4 {[%clk 0:00:17]}  Be5 {[%clk 0:00:51]} 21. Qf3 {[%clk 0:00:15]}  Qxh2# {[%clk 0:00:50]} 0-1


[Site "https://www.chess.com"]

[Event "Titled Tuesday Blitz August 22 Early 2023"]
[White "Borgaonkar Akshay"]
[Black "Shapiro, Daniel"]
[WhiteFideId "25639110"]
[BlackFideId "2001780"]
[WhiteElo "2593"]
[BlackElo "2303"]
[Result "1-0"]
[Round "1"]
[TimeControl "180+1"]
[Date "2023.08.22"]
[WhiteClock "0:01:08"]
[BlackClock "0:00:17"]
[Board "178"]

1. Nf3 {[%clk 0:02:55]}  Nf6 {[%clk 0:02:59]} 2. e3 {[%clk 0:02:55]}  c5 {[%clk 0:02:51]} 3. b3 {[%clk 0:02:54]}  e6 {[%clk 0:02:49]} 4. Bb2 {[%clk 0:02:54]}  Be7 {[%clk 0:02:48]} 5. c4 {[%clk 0:02:52]}  b6 {[%clk 0:02:45]} 6. Nc3 {[%clk 0:02:52]}  Bb7 {[%clk 0:02:45]} 7. Be2 {[%clk 0:02:52]}  O-O {[%clk 0:02:40]} 8. O-O {[%clk 0:02:52]}  a6 {[%clk 0:02:28]} 9. d4 {[%clk 0:02:52]}  cxd4 {[%clk 0:02:23]} 10. Nxd4 {[%clk 0:02:53]}  d6 {[%clk 0:02:21]} 11. Bf3 {[%clk 0:02:52]}  Qc7 {[%clk 0:02:19]} 12. Rc1 {[%clk 0:02:43]}  Nbd7 {[%clk 0:02:18]} 13. Bxb7 {[%clk 0:02:34]}  Qxb7 {[%clk 0:02:18]} 14. Qf3 {[%clk 0:02:34]}  Qxf3 {[%clk 0:02:15]} 15. Nxf3 {[%clk 0:02:35]}  Nc5 {[%clk 0:02:13]} 16. Rfd1 {[%clk 0:02:36]}  Rfd8 {[%clk 0:02:13]} 17. b4 {[%clk 0:02:34]}  Nce4 {[%clk 0:02:10]} 18. Nxe4 {[%clk 0:02:33]}  Nxe4 {[%clk 0:02:10]} 19. Bd4 {[%clk 0:02:30]}  Rab8 {[%clk 0:02:08]} 20. Nd2 {[%clk 0:02:26]}  Nxd2 {[%clk 0:02:06]} 21. Rxd2 {[%clk 0:02:27]}  Rdc8 {[%clk 0:02:01]} 22. Rdc2 {[%clk 0:02:26]}  a5 {[%clk 0:01:39]} 23. a3 {[%clk 0:02:21]}  f6 {[%clk 0:01:30]} 24. e4 {[%clk 0:02:08]}  Kf7 {[%clk 0:01:30]} 25. f3 {[%clk 0:02:08]}  Ke8 {[%clk 0:01:30]} 26. Kf1 {[%clk 0:02:08]}  Rc6 {[%clk 0:01:28]} 27. Ke2 {[%clk 0:02:07]}  Kd7 {[%clk 0:01:24]} 28. Kd3 {[%clk 0:02:07]}  Rcc8 {[%clk 0:01:24]} 29. Rb1 {[%clk 0:02:05]}  Kc6 {[%clk 0:01:19]} 30. Bc3 {[%clk 0:02:04]}  axb4 {[%clk 0:01:18]} 31. axb4 {[%clk 0:02:04]}  Ra8 {[%clk 0:01:18]} 32. Rcc1 {[%clk 0:01:57]}  Ra2 {[%clk 0:01:16]} 33. Rc2 {[%clk 0:01:56]}  Rca8 {[%clk 0:01:16]} 34. Rxa2 {[%clk 0:01:55]}  Rxa2 {[%clk 0:01:15]} 35. Rb2 {[%clk 0:01:56]}  Rxb2 {[%clk 0:01:15]} 36. Bxb2 {[%clk 0:01:56]}  d5 {[%clk 0:01:15]} 37. b5+ {[%clk 0:01:56]}  Kd7 {[%clk 0:01:02]} 38. cxd5 {[%clk 0:01:55]}  exd5 {[%clk 0:01:02]} 39. exd5 {[%clk 0:01:56]}  Bd6 {[%clk 0:01:00]} 40. g3 {[%clk 0:01:54]}  Kc7 {[%clk 0:00:55]} 41. Ke4 {[%clk 0:01:54]}  Bc5 {[%clk 0:00:51]} 42. Kf5 {[%clk 0:01:54]}  Kd6 {[%clk 0:00:51]} 43. Ke4 {[%clk 0:01:53]}  Bg1 {[%clk 0:00:50]} 44. h4 {[%clk 0:01:52]}  Bf2 {[%clk 0:00:48]} 45. Ba3+ {[%clk 0:01:45]}  Bc5 {[%clk 0:00:48]} 46. Bc1 {[%clk 0:01:08]}  Bf2 {[%clk 0:00:48]} 47. Bf4+ {[%clk 0:01:08]}  Kd7 {[%clk 0:00:45]} 48. h5 {[%clk 0:01:08]}  g6 {[%clk 0:00:43]} 49. hxg6 {[%clk 0:01:08]}  hxg6 {[%clk 0:00:44]} 50. g4 {[%clk 0:01:09]}  Bc5 {[%clk 0:00:42]} 51. Be3 {[%clk 0:01:06]}  Kd6 {[%clk 0:00:40]} 52. Bxc5+ {[%clk 0:01:03]}  Kxc5 {[%clk 0:00:41]} 53. g5 {[%clk 0:01:03]}  fxg5 {[%clk 0:00:18]} 54. Ke5 {[%clk 0:01:03]}  Kxb5 {[%clk 0:00:17]} 55. d6 {[%clk 0:01:03]}  Kc4 {[%clk 0:00:18]} 56. d7 {[%clk 0:01:03]}  b5 {[%clk 0:00:19]} 57. d8=Q {[%clk 0:01:03]}  b4 {[%clk 0:00:20]} 58. Qd5+ {[%clk 0:01:04]}  Kc3 {[%clk 0:00:20]} 59. Qd4+ {[%clk 0:01:05]}  Kb3 {[%clk 0:00:19]} 60. Qd3+ {[%clk 0:01:05]}  Kb2 {[%clk 0:00:19]} 61. Qxg6 {[%clk 0:01:06]}  b3 {[%clk 0:00:19]} 62. Qxg5 {[%clk 0:01:07]}  Kc2 {[%clk 0:00:19]} 63. Qe3 {[%clk 0:01:08]}  b2 {[%clk 0:00:17]} 64. f4 {[%clk 0:01:08]} 1-0


[Site "https://www.chess.com"]

[Event "Titled Tuesday Blitz August 22 Early 2023"]
[White "Blokhin, Sofia"]
[Black "Ahmad, Khagan"]
[WhiteFideId "4508190"]
[BlackFideId "13431552"]
[WhiteElo "2297"]
[BlackElo "2593"]
[Result "0-1"]
[Round "1"]
[TimeControl "180+1"]
[Date "2023.08.22"]
[WhiteClock "0:00:16"]
[BlackClock "0:00:09"]
[Board "179"]

1. d4 {[%clk 0:03:00]}  d5 {[%clk 0:02:53]} 2. c4 {[%clk 0:02:59]}  e6 {[%clk 0:02:53]} 3. Nc3 {[%clk 0:02:59]}  Be7 {[%clk 0:02:52]} 4. cxd5 {[%clk 0:02:53]}  exd5 {[%clk 0:02:53]} 5. Bf4 {[%clk 0:02:52]}  c6 {[%clk 0:02:54]} 6. e3 {[%clk 0:02:51]}  Nf6 {[%clk 0:02:52]} 7. Bd3 {[%clk 0:02:51]}  O-O {[%clk 0:02:50]} 8. Nf3 {[%clk 0:02:49]}  Bg4 {[%clk 0:02:49]} 9. h3 {[%clk 0:02:47]}  Bh5 {[%clk 0:02:49]} 10. Qc2 {[%clk 0:02:42]}  Nbd7 {[%clk 0:02:45]} 11. Ne5 {[%clk 0:02:38]}  Nxe5 {[%clk 0:02:14]} 12. dxe5 {[%clk 0:02:34]}  Ne4 {[%clk 0:02:13]} 13. Nxe4 {[%clk 0:02:21]}  dxe4 {[%clk 0:02:03]} 14. Bxe4 {[%clk 0:02:21]}  Bb4+ {[%clk 0:02:04]} 15. Kf1 {[%clk 0:02:18]}  Bg6 {[%clk 0:02:03]} 16. Bxg6 {[%clk 0:02:14]}  hxg6 {[%clk 0:02:04]} 17. h4 {[%clk 0:02:14]}  Qd5 {[%clk 0:01:25]} 18. Rd1 {[%clk 0:02:00]}  Qb5+ {[%clk 0:01:09]} 19. Kg1 {[%clk 0:01:58]}  Rad8 {[%clk 0:01:09]} 20. h5 {[%clk 0:01:48]}  g5 {[%clk 0:00:48]} 21. h6 {[%clk 0:01:25]}  Rxd1+ {[%clk 0:00:21]} 22. Qxd1 {[%clk 0:01:24]}  g6 {[%clk 0:00:15]} 23. h7+ {[%clk 0:01:18]}  Kg7 {[%clk 0:00:14]} 24. Bxg5 {[%clk 0:01:13]}  Qxe5 {[%clk 0:00:14]} 25. Bh6+ {[%clk 0:01:08]}  Kh8 {[%clk 0:00:14]} 26. Bxf8 {[%clk 0:01:06]}  Bxf8 {[%clk 0:00:15]} 27. Qd4 {[%clk 0:01:05]}  Qxd4 {[%clk 0:00:14]} 28. exd4 {[%clk 0:01:06]}  Bg7 {[%clk 0:00:14]} 29. b3 {[%clk 0:01:04]}  Bxd4 {[%clk 0:00:14]} 30. Kf1 {[%clk 0:01:04]}  c5 {[%clk 0:00:15]} 31. Ke2 {[%clk 0:01:05]}  b5 {[%clk 0:00:14]} 32. f3 {[%clk 0:01:03]}  a6 {[%clk 0:00:13]} 33. Kd3 {[%clk 0:01:03]}  Be5 {[%clk 0:00:12]} 34. Ke4 {[%clk 0:01:02]}  Bd4 {[%clk 0:00:10]} 35. Kd5 {[%clk 0:01:02]}  Be3 {[%clk 0:00:10]} 36. Kd6 {[%clk 0:00:57]}  c4 {[%clk 0:00:10]} 37. bxc4 {[%clk 0:00:41]}  bxc4 {[%clk 0:00:11]} 38. Re1 {[%clk 0:00:25]}  Bf4+ {[%clk 0:00:10]} 39. Kc5 {[%clk 0:00:21]}  c3 {[%clk 0:00:10]} 40. Re2 {[%clk 0:00:21]}  Bd2 {[%clk 0:00:09]} 41. Kb6 {[%clk 0:00:21]}  c2 {[%clk 0:00:10]} 42. Re8+ {[%clk 0:00:18]}  Kxh7 {[%clk 0:00:10]} 43. Rc8 {[%clk 0:00:18]}  c1=Q {[%clk 0:00:09]} 44. Rxc1 {[%clk 0:00:19]}  Bxc1 {[%clk 0:00:10]} 45. Kxa6 {[%clk 0:00:19]}  Ba3 {[%clk 0:00:10]} 46. Kb5 {[%clk 0:00:18]}  g5 {[%clk 0:00:11]} 47. Kc4 {[%clk 0:00:19]}  Kg6 {[%clk 0:00:10]} 48. Kd5 {[%clk 0:00:19]}  Kf5 {[%clk 0:00:10]} 49. g3 {[%clk 0:00:18]}  g4 {[%clk 0:00:05]} 50. fxg4+ {[%clk 0:00:17]}  Kxg4 {[%clk 0:00:06]} 51. Ke5 {[%clk 0:00:17]}  f5 {[%clk 0:00:07]} 52. Ke6 {[%clk 0:00:15]}  Kg5 {[%clk 0:00:03]} 53. Ke5 {[%clk 0:00:14]}  Kg4 {[%clk 0:00:03]} 54. Ke6 {[%clk 0:00:14]}  Bb4 {[%clk 0:00:03]} 55. a4 {[%clk 0:00:14]}  Be1 {[%clk 0:00:04]} 56. a5 {[%clk 0:00:14]}  Bxg3 {[%clk 0:00:04]} 57. a6 {[%clk 0:00:15]}  Bb8 {[%clk 0:00:05]} 58. Kd7 {[%clk 0:00:14]}  f4 {[%clk 0:00:05]} 59. Kc8 {[%clk 0:00:15]}  Ba7 {[%clk 0:00:05]} 60. Kb7 {[%clk 0:00:15]}  Be3 {[%clk 0:00:06]} 61. a7 {[%clk 0:00:15]}  Bxa7 {[%clk 0:00:06]} 62. Kxa7 {[%clk 0:00:16]}  f3 {[%clk 0:00:07]} 63. Kb6 {[%clk 0:00:17]}  f2 {[%clk 0:00:08]} 64. Kc5 {[%clk 0:00:18]}  f1=Q {[%clk 0:00:08]} 65. Kd4 {[%clk 0:00:16]}  Kf4 {[%clk 0:00:09]} 0-1


[Site "https://www.chess.com"]

[Event "Titled Tuesday Blitz August 22 Early 2023"]
[White "Colas, Joshua"]
[Black "Battlecruiser_Operational"]
[WhiteFideId "2044447"]
[WhiteElo "2592"]
[BlackElo "2296"]
[Result "0-1"]
[Round "1"]
[TimeControl "180+1"]
[Date "2023.08.22"]
[WhiteClock "0:00:22"]
[BlackClock "0:00:08"]
[Board "180"]

1. Nf3 {[%clk 0:03:00]}  e6 {[%clk 0:02:54]} 2. c4 {[%clk 0:02:55]}  f5 {[%clk 0:02:53]} 3. Nc3 {[%clk 0:02:54]}  Nf6 {[%clk 0:02:53]} 4. d3 {[%clk 0:02:52]}  b6 {[%clk 0:02:53]} 5. e4 {[%clk 0:02:53]}  fxe4 {[%clk 0:02:43]} 6. dxe4 {[%clk 0:02:53]}  Bb4 {[%clk 0:02:42]} 7. e5 {[%clk 0:02:53]}  Bxc3+ {[%clk 0:02:38]} 8. bxc3 {[%clk 0:02:52]}  Ne4 {[%clk 0:02:39]} 9. Qd4 {[%clk 0:02:44]}  Bb7 {[%clk 0:02:35]} 10. Bd3 {[%clk 0:02:43]}  Nc5 {[%clk 0:02:03]} 11. Bg5 {[%clk 0:02:35]}  Nc6 {[%clk 0:01:51]} 12. Qe3 {[%clk 0:02:03]}  Nxd3+ {[%clk 0:01:48]} 13. Qxd3 {[%clk 0:02:04]}  Ne7 {[%clk 0:01:37]} 14. Nd4 {[%clk 0:01:57]}  O-O {[%clk 0:01:31]} 15. Nxe6 {[%clk 0:01:57]}  dxe6 {[%clk 0:01:25]} 16. Qxd8 {[%clk 0:01:57]}  Rfxd8 {[%clk 0:01:25]} 17. Bxe7 {[%clk 0:01:57]}  Rd7 {[%clk 0:01:23]} 18. Bg5 {[%clk 0:01:56]}  Bxg2 {[%clk 0:01:23]} 19. Rg1 {[%clk 0:01:56]}  Bf3 {[%clk 0:01:20]} 20. Rg3 {[%clk 0:01:56]}  Bh5 {[%clk 0:01:20]} 21. Rb1 {[%clk 0:01:39]}  Kf7 {[%clk 0:01:05]} 22. c5 {[%clk 0:01:25]}  h6 {[%clk 0:01:01]} 23. Be3 {[%clk 0:01:23]}  Rad8 {[%clk 0:00:59]} 24. Kf1 {[%clk 0:01:23]}  Rd1+ {[%clk 0:00:56]} 25. Rxd1 {[%clk 0:01:22]}  Rxd1+ {[%clk 0:00:57]} 26. Kg2 {[%clk 0:01:23]}  Ra1 {[%clk 0:00:53]} 27. cxb6 {[%clk 0:01:16]}  axb6 {[%clk 0:00:54]} 28. c4 {[%clk 0:01:09]}  Rxa2 {[%clk 0:00:53]} 29. c5 {[%clk 0:01:09]}  b5 {[%clk 0:00:52]} 30. Rh3 {[%clk 0:01:10]}  Bg4 {[%clk 0:00:43]} 31. Rh4 {[%clk 0:01:10]}  Bf5 {[%clk 0:00:38]} 32. c6 {[%clk 0:01:09]}  Ra4 {[%clk 0:00:35]} 33. Bd4 {[%clk 0:00:36]}  g5 {[%clk 0:00:29]} 34. Rxh6 {[%clk 0:00:36]}  Rxd4 {[%clk 0:00:28]} 35. Rh8 {[%clk 0:00:36]}  Be4+ {[%clk 0:00:25]} 36. Kg3 {[%clk 0:00:35]}  Bxc6 {[%clk 0:00:25]} 37. Rh7+ {[%clk 0:00:35]}  Kg6 {[%clk 0:00:24]} 38. Rxc7 {[%clk 0:00:36]}  Bd5 {[%clk 0:00:22]} 39. Rc8 {[%clk 0:00:36]}  b4 {[%clk 0:00:21]} 40. Rg8+ {[%clk 0:00:36]}  Kf5 {[%clk 0:00:22]} 41. Rb8 {[%clk 0:00:35]}  b3 {[%clk 0:00:19]} 42. Rf8+ {[%clk 0:00:36]}  Kxe5 {[%clk 0:00:19]} 43. Rb8 {[%clk 0:00:37]}  Rd3+ {[%clk 0:00:17]} 44. Kg4 {[%clk 0:00:37]}  Rd2 {[%clk 0:00:16]} 45. f3 {[%clk 0:00:33]}  Rg2+ {[%clk 0:00:16]} 46. Kh3 {[%clk 0:00:33]}  Rf2 {[%clk 0:00:15]} 47. Kg4 {[%clk 0:00:33]}  Bxf3+ {[%clk 0:00:15]} 48. Kg3 {[%clk 0:00:30]}  Rf1 {[%clk 0:00:15]} 49. Rxb3 {[%clk 0:00:30]}  Bd5 {[%clk 0:00:15]} 50. Rb8 {[%clk 0:00:29]}  Rg1+ {[%clk 0:00:13]} 51. Kh3 {[%clk 0:00:27]}  Rg2 {[%clk 0:00:11]} 52. Rg8 {[%clk 0:00:22]}  g4+ {[%clk 0:00:10]} 53. Kh4 {[%clk 0:00:17]}  Rxh2+ {[%clk 0:00:08]} 54. Kg3 {[%clk 0:00:17]}  Rg2+ {[%clk 0:00:08]} 55. Kh4 {[%clk 0:00:18]}  g3 {[%clk 0:00:08]} 56. Rg5+ {[%clk 0:00:18]}  Kf4 {[%clk 0:00:08]} 57. Rg4+ {[%clk 0:00:17]}  Kf3 {[%clk 0:00:07]} 58. Rg8 {[%clk 0:00:18]}  Rh2+ {[%clk 0:00:07]} 59. Kg5 {[%clk 0:00:19]}  g2 {[%clk 0:00:07]} 60. Rf8+ {[%clk 0:00:20]}  Ke2 {[%clk 0:00:07]} 61. Kf6 {[%clk 0:00:19]}  g1=Q {[%clk 0:00:08]} 62. Ke7 {[%clk 0:00:20]}  Qc5+ {[%clk 0:00:07]} 63. Kd7 {[%clk 0:00:20]}  Qxf8 {[%clk 0:00:08]} 64. Kc7 {[%clk 0:00:21]}  Qe7+ {[%clk 0:00:08]} 65. Kb6 {[%clk 0:00:21]}  Qb7+ {[%clk 0:00:08]} 66. Ka5 {[%clk 0:00:22]}  Qb8 {[%clk 0:00:07]} 67. Ka6 {[%clk 0:00:22]}  Rh3 {[%clk 0:00:07]} 68. Ka5 {[%clk 0:00:22]}  Ra3# {[%clk 0:00:08]} 0-1


[Site "https://www.chess.com"]

[Event "Titled Tuesday Blitz August 22 Early 2023"]
[White "Li, Xueyi"]
[Black "Dobrikov, Marco"]
[WhiteFideId "8605912"]
[BlackFideId "12950378"]
[WhiteElo "2296"]
[BlackElo "2592"]
[Result "0-1"]
[Round "1"]
[TimeControl "180+1"]
[Date "2023.08.22"]
[WhiteClock "0:00:16"]
[BlackClock "0:01:19"]
[Board "181"]

1. Nf3 {[%clk 0:01:40]}  Nc6 {[%clk 0:02:57]} 2. g3 {[%clk 0:01:40]}  e5 {[%clk 0:02:56]} 3. d3 {[%clk 0:01:38]}  d5 {[%clk 0:02:55]} 4. Bg2 {[%clk 0:01:37]}  f5 {[%clk 0:02:55]} 5. O-O {[%clk 0:01:33]}  Nf6 {[%clk 0:02:55]} 6. c4 {[%clk 0:01:31]}  dxc4 {[%clk 0:02:54]} 7. dxc4 {[%clk 0:01:31]}  Be6 {[%clk 0:02:54]} 8. b3 {[%clk 0:01:29]}  e4 {[%clk 0:02:49]} 9. Ng5 {[%clk 0:01:27]}  Bg8 {[%clk 0:02:49]} 10. Bb2 {[%clk 0:01:26]}  h6 {[%clk 0:02:42]} 11. Nh3 {[%clk 0:01:26]}  Bd6 {[%clk 0:02:39]} 12. Nf4 {[%clk 0:01:19]}  Bf7 {[%clk 0:02:38]} 13. e3 {[%clk 0:01:17]}  O-O {[%clk 0:02:37]} 14. Nc3 {[%clk 0:01:15]}  g5 {[%clk 0:02:24]} 15. Ncd5 {[%clk 0:01:11]}  Be5 {[%clk 0:02:17]} 16. Nxf6+ {[%clk 0:01:04]}  Qxf6 {[%clk 0:02:16]} 17. Bxe5 {[%clk 0:01:03]}  Nxe5 {[%clk 0:02:17]} 18. Nd5 {[%clk 0:01:02]}  Qd6 {[%clk 0:02:04]} 19. f3 {[%clk 0:00:59]}  exf3 {[%clk 0:02:03]} 20. Bxf3 {[%clk 0:00:59]}  c6 {[%clk 0:02:02]} 21. Nc3 {[%clk 0:00:58]}  Qc5 {[%clk 0:01:57]} 22. Qd4 {[%clk 0:00:55]}  Qe7 {[%clk 0:01:55]} 23. Qd2 {[%clk 0:00:41]}  Rad8 {[%clk 0:01:39]} 24. Qe2 {[%clk 0:00:40]}  Rd3 {[%clk 0:01:30]} 25. Nd1 {[%clk 0:00:32]}  Rfd8 {[%clk 0:01:27]} 26. Bh5 {[%clk 0:00:26]}  Rd2 {[%clk 0:01:19]} 27. Bxf7+ {[%clk 0:00:25]}  Qxf7 {[%clk 0:01:20]} 28. Qe1 {[%clk 0:00:16]}  Qh5 {[%clk 0:01:19]} 0-1


[Site "https://www.chess.com"]